bitfinex/quotes_BTCUSD_20220201
["timestamp","ask_amount","ask_price","bid_price","bid_amount"]
[1643717649697,0.05,38500.0,38495.0,0.28227269]
[1643717649896,0.06494533,38501.0,38495.0,0.28227269]
[1643717650496,0.21693344,38501.0,38495.0,0.28227269]
[1643717650697,0.21693344,38501.0,38495.0,0.28054832]
[1643717650898,0.21693344,38501.0,38496.0,0.00172435]
[1643717651297,0.46422639,38501.0,38496.0,0.00172435]
[1643717651497,0.06494533,38501.0,38496.0,0.00172435]
[1643717651896,0.06494533,38501.0,38496.0,0.27925408]
[1643717652097,0.06494533,38501.0,38497.0,0.00172434]
[1643717653042,0.06494533,38501.0,38491.0,0.09987307]
[1643717653243,0.06494533,38501.0,38497.0,0.00172432]
[1643717653443,0.350887,38500.0,38497.0,0.00172432]
[1643717653646,0.06494533,38501.0,38497.0,0.00172432]
[1643717654246,0.114946,38502.0,38494.0,0.26354868]
[1643717654445,0.1165586,38502.0,38497.0,0.00172432]
[1643717654645,0.0665586,38502.0,38497.0,0.00172432]
[1643717654845,0.0016126,38502.0,38497.0,0.00172432]
[1643717655546,0.2743,38506.0,38496.0,0.064938]
[1643717655745,0.2743,38506.0,38497.0,0.00172433]
[1643717655746,0.00161262,38502.0,38497.0,0.00172433]
[1643717656597,0.24325654,38505.0,38494.0,0.26354868]
[1643717656800,0.00161262,38502.0,38497.0,0.00172433]
[1643717657799,0.06494381,38503.0,38494.0,0.2834014]
[1643717658001,0.14371565,38502.0,38497.0,0.00172002]
[1643717658199,0.25866065,38502.0,38497.0,0.00172002]
[1643717658601,0.11655762,38502.0,38497.0,0.00172002]
[1643717658805,0.05161262,38502.0,38497.0,0.00172002]
[1643717659002,0.06493962,38505.0,38495.0,0.32986942]
[1643717659301,0.00161262,38502.0,38497.0,0.00172002]
[1643717660160,0.00161262,38502.0,38498.0,0.117435]
[1643717660354,0.012,38509.0,38499.0,0.350887]
[1643717660561,0.012,38509.0,38499.0,0.0525]
[1643717660562,0.00161262,38502.0,38499.0,0.0525]
[1643717660754,0.00161262,38502.0,38500.0,0.350887]
[1643717661359,0.14827689,38509.0,38500.0,0.064935]
[1643717661854,0.14827689,38509.0,38499.0,0.0525]
[1643717661855,0.00161263,38503.0,38499.0,0.0525]
[1643717662056,0.00161263,38503.0,38497.0,0.02218555]
[1643717662257,0.350887,38502.0,38497.0,0.02218555]
[1643717662455,0.27869119,38501.0,38497.0,0.02218555]
[1643717662657,0.54188168,38499.0,38497.0,0.02046118]
[1643717662855,0.54188168,38499.0,38497.0,0.02218551]
[1643717663910,0.54188168,38499.0,38497.0,0.02046118]
[1643717665303,0.00161256,38502.0,38497.0,0.02046118]
[1643717665801,0.00151702,38502.0,38496.0,0.00172435]
[1643717666200,0.256446,38509.0,38494.0,0.26530536]
[1643717666201,0.13694011,38508.0,38494.0,0.26530536]
[1643717666406,0.49420539,38508.0,38494.0,0.26530536]
[1643717666804,0.31710998,38507.0,38493.0,0.259748]
[1643717667005,0.30217098,38507.0,38493.0,0.129878]
[1643717667404,0.30217098,38507.0,38494.0,0.01820597]
[1643717667648,0.00080643,38502.0,38494.0,0.01820597]
[1643717667948,0.00080643,38502.0,38493.0,0.129878]
[1643717668347,0.00080643,38502.0,38495.0,0.064941]
[1643717668550,0.12988503,38505.0,38495.0,0.064941]
[1643717668748,0.17988503,38505.0,38497.0,0.00172445]
[1643717669053,0.50060703,38502.0,38497.0,0.00172445]
[1643717669249,0.24449917,38501.0,38497.0,0.00172445]
[1643717669448,0.61555503,38502.0,38497.0,0.00172445]
[1643717669647,0.68050232,38502.0,38497.0,0.00172445]
[1643717669848,0.67888999,38502.0,38493.0,0.129878]
[1643717670048,0.68050236,38502.0,38497.0,0.00172444]
[1643717670947,0.67888999,38502.0,38493.0,0.02113503]
[1643717671150,0.67888999,38502.0,38497.0,0.00172444]
[1643717671402,0.68050236,38502.0,38497.0,0.00172444]
[1643717671801,0.24233642,38501.0,38497.0,0.00172444]
[1643717671998,0.68050236,38502.0,38497.0,0.00172444]
[1643717672200,0.24220681,38501.0,38493.0,0.02113503]
[1643717672399,0.24220681,38501.0,38497.0,0.00172444]
[1643717673198,0.68050236,38502.0,38497.0,0.00172444]
[1643717673403,0.68050236,38502.0,38493.0,0.02113503]
[1643717673404,0.26286788,38501.0,38493.0,0.02113503]
[1643717673601,0.26286788,38501.0,38497.0,0.00149142]
[1643717673602,0.064956,38499.0,38497.0,0.00149142]
[1643717673801,0.350887,38498.0,38497.0,0.00149142]
[1643717673998,0.53689843,38498.0,38497.0,0.00149142]
[1643717674602,0.53689843,38498.0,38491.0,0.03492707]
[1643717674801,0.3929635,38493.0,38491.0,0.03492707]
[1643717676254,0.4348377,38498.0,38491.0,0.03492707]
[1643717676453,0.18601143,38498.0,38491.0,0.03492707]
[1643717676652,0.18601143,38498.0,38491.0,0.09988007]
[1643717677254,0.40111686,38496.0,38493.0,0.00172455]
[1643717677654,0.45111686,38496.0,38493.0,0.00172455]
[1643717678254,0.45111686,38496.0,38491.0,0.09988007]
[1643717678454,0.45111686,38496.0,38493.0,0.00172455]
[1643717679095,0.45048207,38496.0,38493.0,0.00172455]
[1643717679996,0.04936521,38496.0,38493.0,0.00172455]
[1643717680198,0.04936521,38496.0,38493.0,0.06667355]
[1643717680398,0.1195,38500.0,38493.0,0.06667355]
[1643717680598,0.43581356,38503.0,38493.0,0.064949]
[1643717680797,0.00161216,38502.0,38493.0,0.06667355]
[1643717681003,0.33490691,38500.0,38493.0,0.06667355]
[1643717681398,0.38490691,38500.0,38493.0,0.06667355]
[1643717681798,0.38490691,38500.0,38493.0,0.064949]
[1643717681999,0.38490691,38500.0,38495.0,0.0017245]
[1643717682399,0.350887,38499.0,38495.0,0.0017245]
[1643717683148,0.38490691,38500.0,38495.0,0.00172449]
[1643717683348,0.1,38499.0,38495.0,0.00172449]
[1643717683549,0.11760417,38498.0,38495.0,0.00172449]
[1643717683851,0.21760417,38498.0,38495.0,0.00172449]
[1643717684049,0.16760417,38498.0,38495.0,0.00172449]
[1643717684248,0.16760417,38498.0,38491.0,0.09988107]
[1643717684249,0.21760417,38498.0,38491.0,0.03492707]
[1643717684449,0.21760417,38498.0,38495.0,0.0017245]
[1643717684651,0.05,38498.0,38495.0,0.0017245]
[1643717684855,0.05,38500.0,38495.0,0.0017245]
[1643717685050,0.05,38501.0,38495.0,0.0017245]
[1643717685552,0.05,38501.0,38496.0,0.00172447]
[1643717685750,0.06495,38503.0,38496.0,0.00172447]
[1643717685751,0.00161231,38502.0,38496.0,0.00172447]
[1643717686599,0.5656,38505.0,38497.0,0.064943]
[1643717686799,0.00161235,38502.0,38497.0,0.06666744]
[1643717686996,0.00161235,38502.0,38500.0,0.28981781]
[1643717687400,0.00161235,38502.0,38498.0,0.23356753]
[1643717687595,0.00161235,38502.0,38498.0,0.23320188]
[1643717687796,0.05,38505.0,38498.0,0.23320188]
[1643717687998,0.00161239,38502.0,38498.0,0.23320188]
[1643717688196,0.00161239,38502.0,38497.0,0.06666745]
[1643717688401,0.00161239,38502.0,38500.0,0.29632153]
[1643717688600,0.00161239,38502.0,38501.0,0.23899405]
[1643717689097,0.14188004,38509.0,38501.0,0.23899405]
[1643717689298,0.350887,38508.0,38501.0,0.23899405]
[1643717690246,0.350887,38508.0,38500.0,0.29632153]
[1643717690445,0.00080821,38506.0,38500.0,0.29632153]
[1643717690845,0.00080821,38506.0,38495.0,0.28152259]
[1643717690846,0.39927491,38503.0,38495.0,0.28152259]
[1643717691047,0.39927491,38503.0,38494.0,0.3586918]
[1643717691248,0.44927491,38503.0,38494.0,0.1217]
[1643717691449,0.44927491,38503.0,38500.0,0.02105066]
[1643717691646,0.350887,38502.0,38500.0,0.02105066]
[1643717691846,0.350887,38502.0,38497.0,0.00172647]
[1643717692045,0.44927491,38503.0,38497.0,0.00172647]
[1643717692046,0.11250823,38501.0,38497.0,0.00172647]
[1643717692246,0.16250823,38501.0,38497.0,0.00172647]
[1643717692548,0.16250823,38501.0,38492.0,0.26238264]
[1643717692945,0.16250823,38501.0,38497.0,0.00172646]
[1643717693803,0.16250823,38501.0,38492.0,0.28373329]
[1643717693997,0.16250823,38501.0,38497.0,0.00172646]
[1643717695000,0.16250823,38501.0,38492.0,0.26015497]
[1643717695200,0.16250823,38501.0,38497.0,0.00172646]
[1643717695505,0.06494891,38500.0,38497.0,0.00172646]
[1643717696304,0.06494891,38500.0,38492.0,0.04324948]
[1643717696501,0.06494891,38500.0,38497.0,0.00172647]
[1643717698549,0.05,38501.0,38492.0,0.23444558]
[1643717698749,0.114947,38502.0,38497.0,0.00172647]
[1643717699751,0.114947,38502.0,38492.0,0.27109536]
[1643717699752,0.114947,38502.0,38492.0,0.25027757]
[1643717699951,0.114947,38502.0,38498.0,0.00172645]
[1643717701158,0.12989737,38501.0,38498.0,0.00172643]
[1643717701597,0.17989737,38501.0,38498.0,0.00172643]
[1643717702098,0.350887,38500.0,38498.0,0.00172643]
[1643717702397,0.350887,38500.0,38498.0,0.00172645]
[1643717703503,0.350887,38500.0,38493.0,0.02059693]
[1643717703697,0.17989737,38501.0,38497.0,0.00172646]
[1643717703895,0.350887,38500.0,38497.0,0.00172646]
[1643717704697,0.13766513,38497.0,38491.0,0.28501197]
[1643717705144,0.18766513,38497.0,38492.0,0.23332395]
[1643717705343,0.05,38497.0,38492.0,0.23511771]
[1643717705544,0.05,38497.0,38491.0,0.28501197]
[1643717705845,0.064952,38499.0,38492.0,0.23258032]
[1643717706053,0.30549947,38505.0,38492.0,0.23258032]
[1643717706054,0.064947,38502.0,38492.0,0.2343069]
[1643717706248,0.00160803,38504.0,38493.0,0.064944]
[1643717706446,0.00160803,38504.0,38494.0,0.27270281]
[1643717707145,0.65434159,38505.0,38492.0,0.28267552]
[1643717707344,0.65434159,38505.0,38497.0,0.00172646]
[1643717707345,0.00160824,38504.0,38497.0,0.00172646]
[1643717707546,0.00160824,38504.0,38494.0,0.02096283]
[1643717707946,0.00160824,38504.0,38493.0,0.064944]
[1643717708146,0.00160824,38504.0,38494.0,0.26660989]
[1643717708348,0.65434159,38505.0,38494.0,0.26660989]
[1643717708553,0.50261605,38505.0,38494.0,0.26660989]
[1643717709397,0.03694806,38500.0,38495.0,0.064941]
[1643717709599,0.03694806,38500.0,38495.0,0.0666654]
[1643717709797,0.03694806,38500.0,38496.0,0.23790449]
[1643717710000,0.03694806,38500.0,38495.0,0.0017244]
[1643717710602,0.03694806,38500.0,38492.0,0.23675755]
[1643717710801,0.03694806,38500.0,38495.0,0.00172436]
[1643717711105,0.34925832,38499.0,38495.0,0.00172436]
[1643717711401,0.39925832,38499.0,38495.0,0.00172436]
[1643717711601,0.46420932,38499.0,38495.0,0.00172436]
[1643717711801,0.46420932,38499.0,38491.0,0.28501197]
[1643717712001,0.46420932,38499.0,38495.0,0.00172435]
[1643717712200,0.114951,38499.0,38495.0,0.00172435]
[1643717712401,0.05,38499.0,38495.0,0.00172435]
[1643717712652,0.08694806,38500.0,38495.0,0.00172435]
[1643717712850,0.03694806,38500.0,38495.0,0.00172435]
[1643717713052,0.08694806,38500.0,38491.0,0.34995797]
[1643717713250,0.08694806,38500.0,38495.0,0.00172436]
[1643717714351,0.21260681,38500.0,38491.0,0.28501197]
[1643717714550,0.17565875,38500.0,38495.0,0.00172436]
[1643717714751,0.03694806,38496.0,38495.0,0.00172436]
[1643717715153,0.36743744,38496.0,38495.0,0.00172436]
[1643717715551,0.36743744,38496.0,38491.0,0.03492707]
[1643717715752,0.36743744,38496.0,38494.0,0.00172438]
[1643717716601,0.36743744,38496.0,38491.0,0.03492707]
[1643717716905,0.36743744,38496.0,38493.0,0.00172439]
[1643717717102,0.03694806,38496.0,38493.0,0.00172439]
[1643717717901,0.03694806,38496.0,38491.0,0.03492707]
[1643717718103,0.03694806,38496.0,38493.0,0.00172441]
[1643717719605,0.03694806,38496.0,38494.0,0.350887]
[1643717719807,0.00161247,38501.0,38495.0,0.45]
[1643717720051,0.03694806,38498.0,38495.0,0.45]
[1643717720252,0.03694806,38498.0,38496.0,0.350887]
[1643717720951,0.03694806,38498.0,38497.0,0.24600325]
[1643717721357,0.03694806,38498.0,38497.0,0.59689025]
[1643717721555,0.03694806,38498.0,38497.0,0.350887]
[1643717721753,0.03694806,38498.0,38495.0,0.00172436]
[1643717721952,0.03694806,38498.0,38496.0,0.350887]
[1643717722555,0.03194806,38498.0,38496.0,0.350887]
[1643717723354,0.03194806,38498.0,38495.0,0.00172435]
[1643717723557,0.03194806,38498.0,38496.0,0.350887]
[1643717723823,0.03194806,38498.0,38494.0,0.24709744]
[1643717724123,0.03194806,38498.0,38495.0,0.35261135]
[1643717724416,0.03194806,38498.0,38496.0,0.2490614]
[1643717724615,0.03194806,38498.0,38495.0,0.00172435]
[1643717725015,0.064946,38502.0,38493.0,0.01860548]
[1643717725215,0.00161255,38501.0,38495.0,0.00172436]
[1643717725417,0.03194806,38496.0,38495.0,0.00172436]
[1643717725618,0.03194806,38496.0,38495.0,0.35261136]
[1643717725815,0.03194806,38496.0,38495.0,0.60788812]
[1643717726219,0.02,38505.0,38496.0,1.3]
[1643717726420,0.02,38505.0,38498.0,1.378]
[1643717726618,0.00161251,38501.0,38500.0,1.378]
[1643717726822,0.00161251,38501.0,38500.0,1.728887]
[1643717727219,0.00161251,38501.0,38500.0,1.92650317]
[1643717727220,0.00113383,38501.0,38500.0,1.92650317]
[1643717727418,0.02,38505.0,38500.0,0.54850317]
[1643717727656,0.02,38505.0,38502.0,0.22765158]
[1643717727857,0.02,38505.0,38503.0,0.350887]
[1643717728459,0.01992184,38505.0,38504.0,0.27492183]
[1643717728660,0.01992184,38505.0,38504.0,0.62580883]
[1643717729260,0.01992184,38505.0,38504.0,0.350887]
[1643717729464,0.01992184,38505.0,38504.0,0.5853626]
[1643717729660,0.01992184,38505.0,38504.0,0.58609403]
[1643717731314,0.01992184,38505.0,38504.0,0.350887]
[1643717731509,0.01992184,38505.0,38503.0,0.064918]
[1643717732310,0.01992184,38505.0,38504.0,0.350887]
[1643717733110,0.01992184,38505.0,38503.0,0.33764451]
[1643717733310,0.01992184,38505.0,38504.0,0.350887]
[1643717733912,0.01992184,38505.0,38504.0,0.5887353]
[1643717736553,0.0198434,38505.0,38504.0,0.5887353]
[1643717736754,0.001,38511.0,38505.0,1.3]
[1643717736961,0.001,38516.0,38508.0,0.064916]
[1643717737158,0.001,38516.0,38515.0,0.63305883]
[1643717737360,0.001,38516.0,38515.0,0.403387]
[1643717737956,0.001,38516.0,38515.0,0.468286]
[1643717738357,0.001,38516.0,38515.0,1.00680038]
[1643717738557,0.001,38516.0,38515.0,0.74734498]
[1643717738809,0.001,38516.0,38515.0,0.468286]
[1643717740011,0.001,38516.0,38515.0,0.415786]
[1643717740407,0.001,38516.0,38515.0,0.6752414]
[1643717740805,0.001,38516.0,38515.0,0.415786]
[1643717742007,0.001,38516.0,38515.0,2.0532414]
[1643717742206,0.001,38516.0,38515.0,1.793786]
[1643717742406,0.001,38516.0,38515.0,0.415786]
[1643717742659,0.001,38516.0,38515.0,0.468286]
[1643717742856,0.001,38516.0,38515.0,1.846286]
[1643717743057,0.001,38516.0,38515.0,1.99504666]
[1643717743855,0.001,38516.0,38515.0,2.04504666]
[1643717744656,0.00092207,38516.0,38515.0,2.04504666]
[1643717745066,0.00031424,38530.0,38517.0,1.3]
[1643717745269,0.003,38532.0,38521.0,1.35]
[1643717745465,0.003,38532.0,38523.0,1.378]
[1643717745660,0.003,38532.0,38524.0,0.403387]
[1643717745862,0.003,38532.0,38527.0,0.27207964]
[1643717746062,0.003,38532.0,38528.0,0.6617463]
[1643717746322,0.003,38533.0,38530.0,0.75]
[1643717746512,0.00179744,38536.0,38531.0,0.6617463]
[1643717746711,0.001,38542.0,38532.0,0.75]
[1643717746712,0.00874601,38538.0,38532.0,0.75]
[1643717746911,0.00874601,38538.0,38533.0,0.403387]
[1643717747111,0.00874601,38538.0,38535.0,0.12167373]
[1643717747311,0.00874601,38538.0,38536.0,0.468253]
[1643717747509,0.01031421,38549.0,38536.0,0.468253]
[1643717747713,0.00097097,38543.0,38538.0,0.19460129]
[1643717747916,0.00097097,38543.0,38539.0,0.403387]
[1643717748111,0.26867351,38549.0,38539.0,0.403387]
[1643717748309,0.26867351,38549.0,38539.0,0.117365]
[1643717748310,0.01031421,38549.0,38539.0,0.117365]
[1643717748511,0.37935285,38545.0,38539.0,0.117366]
[1643717748713,0.46209329,38545.0,38532.0,0.194581]
[1643717748918,0.09569579,38536.0,38529.0,0.0525]
[1643717749115,0.24179649,38536.0,38527.0,0.1239]
[1643717749313,0.09569579,38536.0,38523.0,0.129768]
[1643717749514,0.09569579,38536.0,38524.0,0.350887]
[1643717749716,0.10021157,38530.0,38524.0,0.350887]
[1643717749912,0.10021157,38530.0,38523.0,0.182268]
[1643717749913,0.10021157,38530.0,38523.0,0.129768]
[1643717750168,0.10021157,38530.0,38522.0,0.00095873]
[1643717750365,0.10021157,38530.0,38521.0,0.129774]
[1643717750673,0.10021157,38530.0,38520.0,0.71756927]
[1643717750674,0.33825877,38523.0,38522.0,0.00095873]
[1643717750873,0.54382382,38523.0,38522.0,0.00095873]
[1643717751466,0.54382382,38523.0,38520.0,0.58779227]
[1643717751666,0.350887,38522.0,38508.0,0.2909637]
[1643717751868,0.0525,38521.0,38517.0,0.0186035]
[1643717752068,0.350887,38520.0,38509.0,0.35938]
[1643717752266,0.09234533,38517.0,38509.0,0.35938]
[1643717752465,0.0525,38516.0,38509.0,0.35938]
[1643717755809,0.77537223,38526.0,38520.0,0.05]
[1643717756201,0.7738,38526.0,38517.0,0.114902]
[1643717756603,0.24750609,38525.0,38521.0,0.00174478]
[1643717756804,0.77537233,38526.0,38521.0,0.00174478]
[1643717757006,0.77537233,38526.0,38521.0,0.0666464]
[1643717757205,0.77537233,38526.0,38521.0,0.35852826]
[1643717757407,0.77537233,38526.0,38521.0,0.40852826]
[1643717757656,0.77537235,38526.0,38522.0,0.00174477]
[1643717757853,0.77537235,38526.0,38523.0,0.350887]
[1643717758054,0.77537235,38526.0,38524.0,0.30326342]
[1643717758253,0.77537235,38526.0,38525.0,0.64441777]
[1643717758654,0.66045432,38543.0,38525.0,0.64441777]
[1643717758856,0.00628815,38536.0,38528.0,0.06488653]
[1643717759053,0.00628815,38536.0,38525.0,0.29353077]
[1643717759054,0.00628815,38536.0,38526.0,0.25854149]
[1643717759253,0.00628815,38536.0,38526.0,0.05]
[1643717759455,0.00628815,38536.0,38526.0,0.28931688]
[1643717759456,0.37638928,38534.0,38526.0,0.28931688]
[1643717759658,0.37638928,38534.0,38522.0,0.00174479]
[1643717759856,0.37638928,38534.0,38526.0,0.02038765]
[1643717760056,0.00157237,38530.0,38526.0,0.02038765]
[1643717760556,0.00157237,38530.0,38522.0,0.00174484]
[1643717760755,0.33172022,38528.0,38522.0,0.00174484]
[1643717760962,0.33172022,38528.0,38523.0,0.12980289]
[1643717761156,0.38422022,38528.0,38523.0,0.12980289]
[1643717761416,0.00157237,38527.0,38523.0,0.12980289]
[1643717762118,0.10157237,38527.0,38522.0,0.00174478]
[1643717762317,0.0525,38526.0,38512.0,0.2583593]
[1643717762515,0.0525,38526.0,38522.0,0.00174478]
[1643717762714,1.129627,38525.0,38522.0,0.00174478]
[1643717762915,0.0525,38524.0,38523.0,0.001]
[1643717763116,1.29365616,38524.0,38523.0,0.001]
[1643717765655,1.182127,38524.0,38523.0,0.001]
[1643717765856,1.129627,38524.0,38523.0,0.001]
[1643717766058,0.77874,38524.0,38523.0,0.001]
[1643717766657,0.90066478,38524.0,38523.0,0.001]
[1643717766854,1.25155178,38524.0,38523.0,0.001]
[1643717768055,1.27155178,38524.0,38523.0,0.001]
[1643717768257,0.92066478,38524.0,38523.0,0.001]
[1643717768561,0.79874,38524.0,38523.0,0.001]
[1643717769903,1.149627,38524.0,38523.0,0.001]
[1643717771304,1.202127,38524.0,38523.0,0.001]
[1643717777717,1.149627,38524.0,38523.0,0.001]
[1643717777919,0.79874,38524.0,38523.0,0.001]
[1643717779021,1.149627,38524.0,38523.0,0.001]
[1643717781059,0.79874,38524.0,38523.0,0.001]
[1643717781464,0.79862685,38524.0,38523.0,0.001]
[1643717783908,0.79862685,38524.0,38518.0,0.03992248]
[1643717784106,0.79862685,38524.0,38522.0,0.00174477]
[1643717785207,0.79862685,38524.0,38521.0,0.12979502]
[1643717785208,0.79862685,38524.0,38521.0,0.1315398]
[1643717786308,0.79862685,38524.0,38521.0,0.12979502]
[1643717786507,0.79862685,38524.0,38521.0,0.13153982]
[1643717787673,0.79862685,38524.0,38521.0,0.0017448]
[1643717788076,0.350887,38523.0,38521.0,0.0017448]
[1643717788674,0.350887,38523.0,38516.0,0.12981606]
[1643717788877,0.21580071,38519.0,38517.0,0.05]
[1643717789874,0.21580071,38519.0,38516.0,0.12981606]
[1643717790076,0.21580071,38519.0,38516.0,0.00174491]
[1643717790275,0.350887,38518.0,38516.0,0.00174491]
[1643717790475,0.21580071,38519.0,38516.0,0.00174491]
[1643717791075,0.21580071,38519.0,38511.0,0.44566903]
[1643717791336,0.32106959,38515.0,38506.0,0.12984909]
[1643717791726,0.41582,38514.0,38506.0,0.12984909]
[1643717791922,0.41582,38514.0,38511.0,0.01932007]
[1643717792127,0.0525,38513.0,38511.0,0.01932007]
[1643717792323,0.48436019,38512.0,38506.0,0.12984909]
[1643717792523,0.53686019,38512.0,38511.0,0.00174505]
[1643717793522,0.53686019,38512.0,38504.0,0.12985928]
[1643717793722,0.53686019,38512.0,38510.0,0.00174507]
[1643717794728,0.53686019,38512.0,38511.0,0.00100891]
[1643717795159,0.53686019,38512.0,38509.0,0.00174508]
[1643717795760,0.0525,38512.0,38509.0,0.06667236]
[1643717795960,0.32106959,38515.0,38509.0,0.06492728]
[1643717796160,0.32106959,38515.0,38509.0,0.06667238]
[1643717796364,0.261373,38514.0,38509.0,0.06667238]
[1643717796862,0.14006692,38510.0,38509.0,0.06667238]
[1643717797060,0.14006692,38510.0,38509.0,0.06492728]
[1643717798561,0.2427597,38514.0,38509.0,0.06492728]
[1643717798818,0.32106959,38515.0,38509.0,0.06492728]
[1643717799009,0.24226278,38514.0,38509.0,0.06492728]
[1643717799208,0.24352211,38514.0,38509.0,0.06492728]
[1643717799407,0.32106959,38515.0,38509.0,0.06492728]
[1643717799608,0.12310755,38514.0,38509.0,0.06492728]
[1643717799811,0.12310755,38514.0,38510.0,0.00174507]
[1643717800009,0.36650441,38514.0,38510.0,0.00174507]
[1643717800309,0.350887,38513.0,38510.0,0.00174507]
[1643717800709,0.350887,38513.0,38509.0,0.06492728]
[1643717800908,0.36669594,38514.0,38510.0,0.00174507]
[1643717801108,0.350887,38513.0,38510.0,0.00174507]
[1643717801508,0.12310755,38514.0,38510.0,0.00174507]
[1643717801708,0.17310755,38514.0,38510.0,0.00174507]
[1643717801908,0.350887,38513.0,38509.0,0.06492728]
[1643717802108,0.350887,38513.0,38510.0,0.00174506]
[1643717802109,0.24792348,38513.0,38510.0,0.00174506]
[1643717802563,0.350887,38512.0,38510.0,0.00174506]
[1643717802764,0.03433633,38518.0,38510.0,0.06667315]
[1643717803161,0.3886,38521.0,38509.0,0.25736002]
[1643717803467,0.3886,38521.0,38512.0,0.00174501]
[1643717803860,0.3886,38521.0,38515.0,0.06491915]
[1643717804065,0.350887,38520.0,38515.0,0.06491915]
[1643717804460,0.350887,38520.0,38516.0,0.00174492]
[1643717804860,0.350887,38523.0,38516.0,0.00174492]
[1643717805265,0.44306116,38523.0,38516.0,0.00174492]
[1643717805460,0.44306116,38523.0,38515.0,0.34876577]
[1643717805659,0.44306116,38523.0,38518.0,0.00174487]
[1643717806718,0.1,38522.0,38514.0,0.12982626]
[1643717806920,0.350887,38521.0,38519.0,0.00174485]
[1643717807516,0.350887,38523.0,38519.0,0.00174485]
[1643717807715,0.450887,38523.0,38519.0,0.00174485]
[1643717807921,0.450887,38523.0,38517.0,0.25041227]
[1643717808218,0.064922,38521.0,38519.0,0.00174483]
[1643717808519,0.350887,38520.0,38519.0,0.00174483]
[1643717808719,0.450887,38520.0,38519.0,0.00174483]
[1643717809219,0.450887,38520.0,38514.0,0.12982626]
[1643717809419,0.350887,38520.0,38518.0,0.00174487]
[1643717809619,0.350887,38521.0,38518.0,0.00174487]
[1643717809820,0.1,38520.0,38518.0,0.00174487]
[1643717810067,0.350887,38519.0,38518.0,0.00174487]
[1643717810266,0.79862685,38524.0,38517.0,0.29921933]
[1643717810475,0.79862685,38524.0,38517.0,0.30623264]
[1643717810667,0.79792602,38524.0,38517.0,0.35623264]
[1643717811471,0.79792602,38524.0,38517.0,0.34906682]
[1643717811667,0.79792602,38524.0,38519.0,0.00174485]
[1643717811868,0.79792602,38524.0,38519.0,0.06664962]
[1643717812266,0.79792602,38524.0,38519.0,0.11664962]
[1643717812768,0.79792602,38524.0,38519.0,0.06490477]
[1643717813072,0.79792602,38524.0,38520.0,0.00174482]
[1643717813915,0.79792602,38524.0,38519.0,0.06490477]
[1643717814118,0.79792602,38524.0,38520.0,0.00174481]
[1643717814916,0.60824702,38523.0,38520.0,0.00174481]
[1643717815113,0.36770415,38522.0,38514.0,0.12982971]
[1643717815313,0.60824702,38521.0,38520.0,0.00174481]
[1643717815513,0.350887,38521.0,38520.0,0.00174481]
[1643717815719,0.450887,38521.0,38520.0,0.00174481]
[1643717815914,0.77446509,38521.0,38520.0,0.00174481]
[1643717816314,0.11861152,38515.0,38514.0,0.12982971]
[1643717817561,0.11861152,38515.0,38513.0,0.06491437]
[1643717817760,0.11861152,38515.0,38513.0,0.06665937]
[1643717818764,0.11861152,38515.0,38513.0,0.06491437]
[1643717819160,0.11361152,38515.0,38513.0,0.06491437]
[1643717820563,0.11361152,38515.0,38512.0,0.00174501]
[1643717820965,0.350887,38514.0,38512.0,0.00174501]
[1643717821160,0.11361152,38515.0,38511.0,0.12984337]
[1643717821420,0.11361152,38515.0,38512.0,0.00174502]
[1643717822522,0.0525,38516.0,38512.0,0.00174502]
[1643717822725,0.25843197,38519.0,38512.0,0.00174502]
[1643717822922,0.56556706,38521.0,38512.0,0.00174502]
[1643717823122,1.12881302,38520.0,38514.0,0.12982989]
[1643717823324,0.24669496,38519.0,38514.0,0.12982989]
[1643717823531,1.12881302,38518.0,38514.0,0.12982989]
[1643717823727,1.12881302,38518.0,38515.0,0.00174493]
[1643717824125,0.2435495,38517.0,38515.0,0.06665924]
[1643717824326,0.350887,38516.0,38515.0,0.00174493]
[1643717824524,0.62772304,38516.0,38515.0,0.00174493]
[1643717824727,0.72772304,38516.0,38511.0,0.12985592]
[1643717824925,0.78022304,38516.0,38514.0,0.00174497]
[1643717825159,0.25531963,38515.0,38514.0,0.00174497]
[1643717825360,0.60620663,38515.0,38514.0,0.00174497]
[1643717828916,0.64968959,38512.0,38511.0,0.2596548]
[1643717829111,0.403387,38512.0,38511.0,0.2596548]
[1643717829314,0.65432405,38512.0,38511.0,0.2596548]
[1643717829712,0.403387,38512.0,38511.0,0.2596548]
[1643717829916,0.350887,38512.0,38511.0,0.12985888]
[1643717830111,0.503387,38512.0,38511.0,0.12985888]
[1643717830517,0.73213498,38511.0,38510.0,0.00174507]
[1643717830815,0.06495,38510.0,38500.0,0.01]
[1643717831014,0.6410017,38502.0,38500.0,0.01]
[1643717831212,0.6410017,38502.0,38500.0,0.139901]
[1643717831812,0.25375557,38502.0,38500.0,0.139901]
[1643717832213,0.0525,38505.0,38500.0,0.139901]
[1643717832559,0.78354579,38504.0,38500.0,0.01]
[1643717832760,0.52617401,38504.0,38500.0,0.01]
[1643717833159,0.77792602,38503.0,38500.0,0.01]
[1643717833361,0.57731959,38502.0,38500.0,0.01174531]
[1643717833561,0.77792602,38501.0,38500.0,0.01174531]
[1643717833763,1.17881302,38501.0,38500.0,0.01174531]
[1643717834361,1.17881302,38501.0,38500.0,0.01]
[1643717834660,1.12881302,38501.0,38500.0,0.01]
[1643717834861,0.77792602,38501.0,38500.0,0.01]
[1643717837918,1.12881302,38501.0,38500.0,0.01]
[1643717838619,1.22881302,38501.0,38500.0,0.01]
[1643717839619,1.28131302,38501.0,38500.0,0.01]
[1643717840464,1.28131302,38501.0,38490.0,0.1330376]
[1643717840465,1.52738526,38501.0,38490.0,0.1330376]
[1643717840668,0.74442089,38500.0,38499.0,0.00174534]
[1643717840867,1.57484691,38500.0,38499.0,0.00174534]
[1643717841667,0.064965,38498.0,38491.0,0.09988853]
[1643717841969,0.12252644,38492.0,38491.0,0.09988853]
[1643717842265,0.0525,38492.0,38491.0,0.09988853]
[1643717845314,0.0525,38492.0,38491.0,0.03492707]
[1643717846116,0.30510312,38492.0,38491.0,0.03492707]
[1643717846316,0.65599012,38492.0,38491.0,0.03492707]
[1643717846717,1.43391614,38492.0,38491.0,0.03492707]
[1643717849465,1.53391614,38492.0,38491.0,0.03492707]
[1643717850469,1.33131302,38492.0,38491.0,0.03492707]
[1643717850668,1.28131302,38492.0,38491.0,0.03492707]
[1643717851934,0.56498,38491.0,38490.0,0.00488057]
[1643717852134,1.34629302,38491.0,38490.0,0.00488057]
[1643717852338,1.34629302,38491.0,38490.0,0.003135]